{"text_format":"1","workbook":"xlsx","n_sheets":5,"sheets":["Excel Tools","Direct Logic","EXACT","SEARCH","VBA Code"],"not_rendered":{"charts":0,"images":0,"macros":1,"external_links":0,"defined_names":0,"comments":0,"pivot_tables":0},"unopened":[],"bounds":{"document_bytes":16777216,"sheet_cells":100000,"rows_first":2000,"rows_last":500,"rows_between":2000,"halvings":0,"cell_chars":16384,"cell_head_chars":4096},"cells_cut":0,"cells_raw":0,"read":"whole","date_system":"1900"}

{"sheet":"Excel Tools","index":0,"n_rows":11,"n_cols":3,"rows_kept":11,"cut":false,"hidden":false,"merged":[]}
["Excel Compare Two Strings for Similarity"]
[]
[null,"Athlete Name","Known As"]
[null,"Cristiano Ronaldo","Ronaldo"]
[null,"Lionel Messi","Messi"]
[null,"Neymar Jr.","Neymar"]
[null,"Sergio Ramos","Ramos"]
[null,"Paul Pogba","Pogba"]
[null,"Eden Hazard","Hazard"]
[null,"Bruno Fernandes","Bruno Fernandes"]
[null,"Diego Maradona","Maradona"]

{"sheet":"Direct Logic","index":1,"n_rows":11,"n_cols":5,"rows_kept":11,"cut":false,"hidden":false,"merged":[]}
["Excel Compare Two Strings for Similarity"]
[]
[null,"Athlete Name","Known As",null,"Match or Not"]
[null,"Cristiano Ronaldo","Ronaldo",null,{"$f":"B4=C4","v":false}]
[null,"Lionel Messi","Messi",null,{"$f":"B5=C5","v":false}]
[null,"Neymar Jr.","Neymar",null,false]
[null,"Sergio Ramos","Ramos",null,false]
[null,"Paul Pogba","Pogba",null,false]
[null,"Eden Hazard","Hazard",null,false]
[null,"Bruno Fernandes","Bruno Fernandes",null,true]
[null,"Diego Maradona","Maradona",null,false]

{"sheet":"EXACT","index":2,"n_rows":11,"n_cols":5,"rows_kept":11,"cut":false,"hidden":false,"merged":[]}
["Excel Compare Two Strings for Similarity"]
[]
[null,"Athlete Name","Known As",null,"Match or Not"]
[null,"Cristiano Ronaldo","Ronaldo",null,{"$f":"EXACT(B4,C4)","v":false}]
[null,"Lionel Messi","Messi",null,false]
[null,"Neymar Jr.","Neymar",null,false]
[null,"Sergio Ramos","Ramos",null,false]
[null,"Paul Pogba","Pogba",null,false]
[null,"Eden Hazard","Hazard",null,false]
[null,"Bruno Fernandes","Bruno Fernandes",null,true]
[null,"Diego Maradona","Maradona",null,false]

{"sheet":"SEARCH","index":3,"n_rows":11,"n_cols":5,"rows_kept":11,"cut":false,"hidden":false,"merged":[]}
["Excel Compare Two Strings for Similarity"]
[]
[null,"Athlete Name","Known As",null,"Similar or Not"]
[null,"Cristiano Ronaldo","Ronaldo",null,{"$f":"IF(SEARCH(C4,B4),\"Similar\",\"Not Similar\")","v":"Similar"}]
[null,"Lionel Messi","Messi",null,{"$f":"IF(SEARCH(C5,B5),\"Similar\",\"Not Similar\")","v":"Similar"}]
[null,"Neymar Jr.","Neymar",null,"Similar"]
[null,"Sergio Ramos","Ramos",null,"Similar"]
[null,"Paul Pogba","Pogba",null,"Similar"]
[null,"Eden Hazard","Hazard",null,"Similar"]
[null,"Bruno Fernandes","Bruno Fernandes",null,"Similar"]
[null,"Diego Maradona","Maradona",null,"Similar"]

{"sheet":"VBA Code","index":4,"n_rows":11,"n_cols":3,"rows_kept":11,"cut":false,"hidden":false,"merged":[]}
["Excel Compare Two Strings for Similarity"]
[]
[null,"Athlete Name","Known As"]
[null,"Cristiano Ronaldo","Ronaldo"]
[null,"Lionel Messi","Messi"]
[null,"Neymar Jr.","Neymar"]
[null,"Sergio Ramos","Ramos"]
[null,"Paul Pogba","Pogba"]
[null,"Eden Hazard","Hazard"]
[null,"Bruno Fernandes","Bruno Fernandes"]
[null,"Diego Maradona","Maradona"]